bitfinex/quotes_ETHUSD_20241101
["timestamp","ask_amount","ask_price","bid_price","bid_amount"]
[1730424986377,0.005,2513.9,2513.5,0.55]
[1730424986578,0.005,2513.7,2513.3,0.55]
[1730424986776,0.005,2513.5,2513.3,0.55]
[1730424987288,0.005,2513.5,2513.1,3.0]
[1730424987495,0.005,2513.5,2512.8,3.97953]
[1730424987496,0.005,2513.3,2512.8,3.97953]
[1730424987817,0.8935,2513.5,2512.4,3.98018]
[1730424987818,0.005,2512.9,2512.4,3.98018]
[1730424988022,0.005,2512.9,2512.2,3.98053]
[1730424988023,0.9359,2512.7,2512.2,3.98053]
[1730424988182,0.005,2512.5,2512.2,3.98053]
[1730424988381,0.005,2512.5,2512.1,4.38671142]
[1730424988600,0.005,2512.5,2512.1,3.98069]
[1730424988806,0.005,2512.5,2511.6,4.87239]
[1730424988807,0.005,2512.5,2512.2,3.98057]
[1730424989085,0.005,2512.5,2512.3,4.06000507]
[1730424989429,0.005,2512.5,2512.4,3.98025]
[1730424989724,0.005,2512.5,2512.4,0.55]
[1730424990017,0.9359,2512.7,2512.3,3.98036]
[1730424990225,0.005,2512.7,2512.5,3.97996]
[1730424990387,0.005,2512.7,2512.6,0.07958578]
[1730424990718,0.9642,2513.2,2512.6,4.05952517]
[1730424990719,0.00345729,2513.1,2512.6,4.05952517]
[1730424990882,0.00345729,2512.9,2512.6,3.97994]
[1730424991089,0.00345729,2512.9,2512.7,4.52973]
[1730424991286,0.00345729,2512.9,2512.8,4.52962]
[1730424991517,0.00345729,2513.3,2512.9,3.97946]
[1730424991822,0.9642,2513.6,2513.2,3.97899]
[1730424992120,0.01,2514.4,2512.9,3.55]
[1730424992121,0.00345729,2513.9,2513.5,3.97838]
[1730424992331,3.61928055,2514.7,2513.1,3.97907]
[1730424992332,0.00345729,2514.1,2514.0,3.97772]
[1730424992482,0.9078,2514.4,2514.2,3.97739]
[1730424992684,0.00345729,2514.5,2514.4,3.97709]
[1730424992996,0.9078,2514.9,2514.6,3.97663]
[1730424992997,0.91125729,2514.9,2514.6,3.97663]
[1730424993203,0.00345729,2514.5,2514.4,0.55]
[1730424993421,0.00345729,2514.7,2514.4,3.97709]
[1730424993738,0.00345729,2514.6,2514.5,0.55]
[1730424993886,3.97604,2515.1,2514.5,0.55]
[1730424993887,0.00345729,2515.1,2515.0,4.52614]
[1730424994085,0.00345729,2515.1,2514.6,3.97677]
[1730424994086,0.00345729,2515.1,2514.8,3.0]
[1730424994404,0.00345729,2515.1,2514.9,0.07950937]
[1730424994614,0.00345729,2515.1,2514.6,7.52674]
[1730424994915,0.00345729,2514.9,2514.8,3.97635]
[1730424995330,0.91125729,2515.4,2515.1,3.97591]
[1730424995629,0.00345729,2515.2,2515.1,4.52591]
[1730424995800,0.91125729,2515.4,2515.2,3.97581]
[1730424996123,0.00345729,2515.4,2515.3,3.97566]
[1730424996355,4.38677196,2517.2,2515.5,0.55]
[1730424996356,0.00345729,2515.9,2515.5,0.55]
[1730424996525,0.00345729,2515.9,2515.3,3.91471384]
[1730424996526,0.00345729,2515.9,2515.7,0.55]
[1730424996838,0.9195,2516.2,2515.5,0.55]
[1730424996839,0.00345729,2515.7,2515.5,0.55]
[1730424997401,0.00345729,2515.5,2515.4,0.55]
[1730424997737,0.00345729,2515.5,2515.3,0.55]
[1730424997898,0.00345729,2515.7,2515.4,4.52551]
[1730424998104,0.00345729,2515.7,2515.5,0.55]
[1730424998536,0.00345729,2515.7,2515.6,0.02182269]
[1730424998736,0.00345729,2515.7,2515.5,0.55]
[1730424999038,0.00345729,2515.7,2515.6,3.97505]
[1730424999223,0.00345729,2515.9,2515.8,3.97477]
[1730424999429,0.00345729,2515.9,2515.8,4.52477]
[1730424999745,0.087438,2516.6,2515.9,4.52458]
[1730424999746,0.00345729,2516.1,2515.9,4.52458]
[1730424999928,0.00345729,2515.8,2515.7,0.55]
[1730425000135,0.00345729,2515.4,2515.1,3.97596]
[1730425000440,0.00345729,2515.4,2514.5,4.93777]
[1730425000441,0.00345729,2515.4,2514.8,3.9764]
[1730425000602,0.00345729,2515.4,2514.5,4.93776]
[1730425000802,0.00345729,2515.4,2515.3,3.97556]
[1730425001016,0.95155729,2515.8,2515.5,3.97525]
[1730425001305,3.97431,2516.2,2515.9,3.97472]
[1730425001306,0.00345729,2516.0,2515.9,3.97472]
[1730425001536,0.00345729,2516.0,2515.8,3.97477]
[1730425001845,0.00345729,2516.0,2515.9,0.55]
[1730425002134,0.93725729,2516.2,2515.9,4.52472]
[1730425002347,0.00345729,2516.0,2515.9,0.55]
[1730425002561,0.00345729,2516.2,2515.9,4.52472]
[1730425002721,0.00345729,2516.0,2515.9,0.55]
[1730425002923,0.00345729,2516.0,2515.7,0.55]
[1730425002924,3.97816729,2516.0,2515.7,0.55]
[1730425003219,0.00345729,2516.0,2515.5,3.0]
[1730425003472,0.00345729,2516.0,2515.6,3.97516]
[1730425003758,0.00345729,2516.0,2515.8,7.94966]
[1730425004062,0.00345729,2516.0,2515.7,3.97501]
[1730425004362,0.00345729,2516.0,2515.8,0.55]
[1730425005570,0.00345729,2516.0,2515.9,0.55]
[1730425005923,0.00345729,2516.0,2515.9,4.52471]
[1730425006178,0.00345729,2516.0,2515.8,3.49954]
[1730425006531,0.00345729,2516.1,2515.9,3.97471]
[1730425006727,0.00345729,2516.1,2515.9,3.97461]
[1730425007056,0.00345729,2516.1,2515.6,3.97511]
[1730425007272,0.00345729,2515.9,2515.7,0.02103536]
[1730425007460,0.00345729,2515.9,2515.7,3.97488]
[1730425007670,0.00345729,2516.1,2515.7,7.94976]
[1730425007855,0.00345729,2516.1,2515.9,3.97461]
[1730425008546,0.00345729,2516.3,2516.0,4.52456]
[1730425008760,0.00345729,2516.1,2516.0,4.52456]
[1730425009072,0.00345729,2516.3,2516.1,0.55]
[1730425009268,0.00345729,2516.3,2516.1,4.5243]
[1730425009426,0.00345729,2516.3,2516.1,0.55]
[1730425009624,0.00345729,2516.1,2515.8,3.9748]
[1730425009828,0.00345729,2516.1,2516.0,0.55]
[1730425010065,0.00345729,2515.9,2515.6,3.97512]
[1730425010278,0.00345729,2515.6,2515.2,3.97577]
[1730425010579,0.00345729,2515.6,2514.8,3.97636]
[1730425010580,3.97544,2515.5,2514.8,3.97636]
[1730425010779,0.00345729,2515.3,2514.8,3.97636]
[1730425011086,0.00345729,2515.7,2515.5,3.97532]
[1730425011294,0.00345729,2515.9,2515.5,3.97532]
[1730425011468,0.00345729,2515.9,2515.7,3.97493]
[1730425011668,0.00345729,2515.9,2515.3,3.97561]
[1730425011866,0.9583,2516.3,2514.9,3.97622]
[1730425011867,0.00345729,2515.6,2514.9,3.97622]
[1730425012183,0.00345729,2515.6,2514.6,0.891478]
[1730425012184,0.00345729,2515.2,2514.7,3.97653]
[1730425012509,0.00345729,2515.0,2514.5,0.895]
[1730425012797,0.00345729,2514.8,2514.4,3.97699]
[1730425012972,0.00345729,2514.8,2514.5,3.97691]
[1730425013177,0.00345729,2514.8,2514.4,3.97699]
[1730425013378,0.00345729,2514.8,2514.2,3.97739]
[1730425013379,3.97991729,2514.8,2514.2,3.97739]
[1730425013584,0.00345729,2514.4,2514.0,7.95522]
[1730425013794,0.00345729,2514.4,2514.0,3.9776]
[1730425013999,0.00345729,2514.4,2513.9,3.97785]
[1730425014186,0.00345729,2514.4,2513.9,3.97787]
[1730425014533,0.00345729,2514.4,2513.4,1.35551934]
[1730425014534,0.00345729,2514.4,2513.5,3.97851]
[1730425014720,0.9829,2514.7,2513.5,3.97851]
[1730425014721,0.00345729,2514.6,2514.4,3.97699]
[1730425014921,0.00345729,2514.6,2514.3,3.97724]
[1730425015081,0.00345729,2514.6,2514.4,0.07953014]
[1730425015693,0.00345729,2514.6,2514.4,3.97694]
[1730425016021,3.97605,2515.1,2514.0,6.97765]
[1730425016022,0.00345729,2514.8,2514.0,6.97765]
[1730425016250,3.97509,2515.7,2514.9,3.9763]
[1730425016536,0.01,2516.0,2515.2,0.55]
[1730425016537,3.97503,2515.8,2515.2,0.55]
[1730425016715,3.97503,2515.8,2515.2,4.52577]
[1730425016913,3.97482,2515.9,2515.3,3.97564]
[1730425017128,3.98472,2515.9,2514.9,4.9331]
[1730425017484,3.97505,2515.7,2515.0,3.97612]
[1730425017736,3.97532,2515.6,2514.8,3.97636]
[1730425017941,3.97555,2515.4,2514.9,0.55]
[1730425018616,3.97532,2515.6,2515.0,3.97613]
[1730425018947,3.97541,2515.5,2515.0,3.97613]
[1730425019105,4.770483,2515.5,2515.0,3.97613]
[1730425019310,5.735383,2515.5,2515.0,3.97613]
[1730425019618,0.9649,2515.5,2515.1,4.05544642]
[1730425019825,4.87474,2515.9,2515.3,3.97557]
[1730425020145,3.97492,2515.8,2515.3,3.97557]
[1730425020496,3.97492,2515.8,2515.2,0.55]
[1730425020703,0.487482,2515.7,2514.9,3.97624]
[1730425020918,3.97568,2515.3,2515.0,0.07950951]
[1730425021125,4.87466,2515.9,2514.4,0.9569]
[1730425021126,0.9099,2515.9,2514.9,0.07951263]
[1730425021326,4.87465,2515.9,2515.2,3.97582]
[1730425021651,0.8999,2515.9,2515.4,3.9755]
[1730425021801,0.8999,2515.9,2514.8,6.97642]
[1730425021802,3.97487,2515.8,2515.0,3.97605]
[1730425021995,3.9759,2515.2,2514.6,3.97666]
[1730425022244,3.97641,2514.9,2514.2,3.97731]
[1730425022440,3.97688,2514.6,2514.0,3.97768]
[1730425022637,3.97688,2514.6,2514.0,3.97763]
[1730425022814,3.97652,2514.8,2514.1,3.97747]
[1730425023015,3.97667,2514.7,2514.1,3.97747]
[1730425023223,4.374172,2514.8,2514.2,3.97738]
[1730425023420,3.97652,2514.8,2514.2,4.05691164]
[1730425023725,3.97622,2515.0,2514.4,3.97708]
[1730425023926,3.97622,2515.0,2513.9,6.97784]
[1730425023927,3.97656,2514.8,2514.2,3.97728]
[1730425024242,0.9666,2515.1,2514.4,3.97708]
[1730425024546,0.9666,2515.1,2514.5,0.07952074]
[1730425024547,3.97655,2514.8,2514.5,0.07952074]
[1730425024842,3.97647,2514.8,2514.3,3.97721]
[1730425025051,0.9666,2515.1,2514.5,3.97684]
[1730425025249,3.97615,2515.0,2514.4,3.97696]
[1730425025459,3.97651,2514.8,2514.2,4.52736]
[1730425025653,1.460843,2515.1,2514.2,0.55]
[1730425025856,3.9764,2514.9,2514.2,4.52728]
[1730425026162,3.97627,2515.0,2514.4,3.97708]
[1730425026343,3.97627,2515.0,2514.5,0.07952605]
[1730425026344,7.95253,2515.0,2514.5,0.07952605]
[1730425026653,7.95253,2515.0,2514.4,3.97708]
[1730425026654,3.97626,2515.0,2514.4,3.97708]
[1730425026855,0.9666,2515.1,2514.5,3.9769]
[1730425027162,0.9421,2515.5,2514.9,3.97618]
[1730425027460,4.91754,2515.5,2514.9,3.97618]
[1730425027761,3.97465,2516.0,2515.0,0.07950825]
[1730425028052,0.9421,2515.9,2515.4,3.97549]
[1730425028254,0.9421,2515.9,2515.3,0.55]
[1730425028255,3.97496,2515.8,2515.3,0.55]
[1730425028417,3.97524,2515.6,2514.8,3.97644]
[1730425028622,3.97561,2515.4,2514.9,0.55]
[1730425028822,3.97535,2515.5,2514.4,3.977]
[1730425029021,3.97535,2515.5,2514.5,4.56990047]
[1730425029022,3.97602,2515.1,2514.5,4.56990047]
[1730425029252,3.97602,2515.1,2514.4,3.97698]
[1730425029253,3.97648,2514.8,2514.2,3.97731]
[1730425029549,7.95181,2515.2,2514.5,3.97692]
[1730425029768,0.795181,2515.1,2514.6,0.07952315]
[1730425030055,0.795181,2515.1,2514.6,4.05629315]
[1730425030267,7.95183,2515.2,2514.6,3.97668]
[1730425030422,3.97585,2515.2,2514.6,3.97668]
[1730425030754,3.97585,2515.2,2514.7,4.0561273]
[1730425030959,3.97562,2515.4,2514.7,3.97652]
[1730425031128,3.97562,2515.4,2514.9,0.55]
[1730425031330,3.97593,2515.2,2514.7,3.97652]
[1730425032073,3.97593,2515.2,2514.3,3.0]
[1730425032074,3.97606,2515.1,2514.3,6.97719]
[1730425032227,3.97686,2514.6,2514.0,0.9298]
[1730425032424,3.97693,2514.5,2514.0,4.90746]
[1730425032645,1.0072,2515.0,2514.0,4.90746]
[1730425032646,3.97654,2514.8,2514.0,0.9298]
[1730425032846,3.97729,2514.3,2513.6,5.38554849]
[1730425033159,3.97672,2514.7,2512.8,0.9689]
[1730425033160,0.01,2514.2,2512.8,0.9689]
[1730425033365,3.97769,2514.1,2513.5,3.97843]
[1730425033572,3.97769,2514.1,2513.6,0.07956045]
[1730425033573,3.97767,2514.1,2513.6,0.07956045]
[1730425034082,3.97807,2513.8,2513.3,3.97873]
[1730425034381,3.97807,2513.8,2512.9,3.97946]
[1730425034382,0.795605,2513.8,2512.9,3.97946]
[1730425034696,0.9913,2514.3,2513.3,3.97881]
[1730425034989,3.97798,2513.9,2513.4,0.07956035]
[1730425035145,7.95596,2513.9,2513.4,0.07956035]
[1730425035352,3.97798,2513.9,2513.4,0.07956035]
[1730425035579,3.97798,2513.9,2513.4,4.05813035]
[1730425035883,0.9813,2514.3,2513.4,4.05813035]
[1730425035884,0.9813,2514.3,2513.5,0.55]
[1730425036093,3.97767,2514.1,2513.5,4.5284]
[1730425036265,3.97789,2513.9,2513.4,3.97859]
[1730425036781,4.871261,2514.1,2513.4,3.97854]
[1730425037086,3.97773,2514.0,2513.4,3.97854]
[1730425037295,3.97791,2513.9,2513.3,0.55]
[1730425037482,3.97791,2513.9,2513.4,3.97864]
[1730425038099,4.95864,2514.3,2513.3,0.55]
[1730425038257,3.977,2514.5,2514.0,3.97772]
[1730425038451,4.95797,2514.7,2513.6,1.5366]
[1730425038452,0.9813,2514.7,2514.2,3.9774]
[1730425038762,0.9813,2514.7,2514.2,3.97731]
[1730425039297,0.9813,2514.7,2514.3,3.97713]
[1730425039451,3.97647,2514.8,2514.3,3.97724]
[1730425039786,3.97636,2514.9,2514.3,3.97724]
[1730425040117,3.97636,2514.9,2514.4,3.97706]
[1730425040455,3.97636,2514.9,2514.2,3.97731]
[1730425040456,3.97657,2514.8,2514.2,3.97731]
[1730425040653,3.97662,2514.7,2514.2,3.97731]
[1730425040852,3.97662,2514.7,2514.1,3.0]
[1730425040853,3.97698,2514.5,2514.1,3.0]
[1730425041085,3.98725,2514.3,2513.2,3.9789]
[1730425041286,3.978,2513.9,2513.4,3.97864]
[1730425041491,3.97808,2513.8,2513.0,0.9537]
[1730425041794,3.97808,2513.8,2512.6,3.98989]
[1730425041795,3.979,2513.2,2512.6,4.90054]
[1730425042014,3.97916,2513.1,2512.6,3.97984]
[1730425042289,3.979,2513.2,2512.7,3.97978]
[1730425042602,4.90657,2513.4,2512.3,0.9207]
[1730425042796,0.9278,2513.4,2512.9,3.97938]
[1730425043098,3.97883,2513.3,2512.8,3.9796]
[1730425043275,0.9278,2513.4,2512.7,3.9797]
[1730425044422,3.02,2513.9,2513.3,3.97873]
[1730425044423,3.97789,2513.9,2513.3,3.97873]
[1730425044625,4.98541,2514.0,2513.4,3.97865]
[1730425044776,1.0076,2514.5,2513.6,3.97823]
[1730425044982,3.97758,2514.1,2513.7,0.0367363]
[1730425045187,3.97758,2514.1,2513.5,3.97841]
[1730425045393,3.97756,2514.2,2513.5,3.97841]
[1730425045699,3.97751,2514.2,2513.6,4.01506964]
[1730425046009,3.97758,2514.1,2513.7,0.07955515]
[1730425046175,3.97758,2514.1,2513.5,7.95683]
[1730425046512,3.97789,2513.9,2513.4,7.52866]
[1730425046716,3.97783,2514.0,2513.5,3.97846]
[1730425047007,7.95564,2514.0,2513.4,4.52856]
[1730425047208,0.795509,2514.1,2513.5,3.97837]
[1730425047417,0.01,2514.4,2513.4,0.55]
[1730425047418,3.97713,2514.4,2513.7,3.97819]
[1730425047581,3.97713,2514.4,2513.4,0.55]
[1730425047582,3.97713,2514.4,2513.9,3.97776]
[1730425047784,1.0076,2514.5,2514.0,3.97771]
[1730425048007,4.98455,2514.5,2514.0,0.07954639]
[1730425048390,1.0076,2514.5,2514.0,4.05724639]
[1730425048814,1.0076,2514.5,2514.0,0.55]
[1730425049020,1.0076,2514.5,2514.1,3.97756]
[1730425049322,3.97647,2514.8,2514.2,0.07953822]
[1730425049635,7.95303,2514.8,2514.2,4.05691822]
[1730425049781,3.97662,2514.7,2514.2,4.05691822]
[1730425049980,3.97662,2514.7,2514.2,0.07953822]
[1730425050328,0.9661,2514.3,2513.3,0.9701]
[1730425050530,0.9661,2514.3,2512.9,4.94946]
[1730425050531,0.01,2514.2,2512.9,4.94946]
[1730425050686,3.97839,2513.6,2513.0,3.97922]
[1730425050882,3.97839,2513.6,2513.1,3.97913]
[1730425051082,3.97804,2513.8,2513.2,4.05854903]
[1730425051281,3.97782,2514.0,2513.2,4.05854903]
[1730425051282,3.97793,2513.9,2513.3,3.97872]
[1730425051491,3.97782,2514.0,2513.4,4.05812428]
[1730425051699,0.9661,2514.3,2513.6,3.97832]
[1730425051894,3.97749,2514.2,2513.6,3.97832]
[1730425052215,0.9661,2514.3,2513.7,0.0795517]
[1730425052412,3.97697,2514.5,2513.9,3.97777]
[1730425052722,3.97697,2514.5,2514.0,0.07954098]
[1730425052932,3.97712,2514.4,2513.9,3.97777]
[1730425053233,3.97694,2514.5,2513.9,3.97777]
[1730425053942,1.011,2514.7,2514.0,3.97772]
[1730425054090,1.011,2514.7,2513.9,0.795587]
[1730425054091,1.011,2514.7,2513.6,0.9506]
[1730425054291,3.97709,2514.4,2513.9,4.52786]
[1730425054486,3.97709,2514.4,2513.9,0.55]
[1730425054731,3.97765,2514.1,2513.7,0.55]
[1730425055026,3.97765,2514.1,2512.9,3.97942]
[1730425055027,3.97835,2513.6,2512.9,3.97942]
[1730425055325,3.97847,2513.6,2513.0,4.058767]
[1730425055537,0.9561,2513.9,2513.2,3.97883]
[1730425055538,3.97804,2513.8,2513.2,3.97883]
[1730425055687,3.97839,2513.6,2512.8,4.94481]
[1730425055889,0.9561,2513.9,2513.1,3.97913]
[1730425055890,3.97807,2513.8,2513.1,3.97913]
[1730425056090,3.97807,2513.8,2513.2,3.97889]
[1730425056687,3.97807,2513.8,2513.3,3.9788]
[1730425057993,0.9561,2513.9,2513.3,3.9788]
[1730425058213,4.93399,2513.9,2513.3,3.9788]
[1730425058418,3.9782,2513.7,2513.2,0.55]
[1730425058694,3.97805,2513.8,2513.2,4.52897]
[1730425058916,0.9561,2513.9,2513.3,3.97869]
[1730425059115,4.93399,2513.9,2513.3,3.97869]
[1730425059329,1.847279,2513.9,2512.8,7.94484]
[1730425059627,3.97836,2513.6,2513.0,3.9792]
[1730425059826,3.97836,2513.6,2513.1,0.07957378]
[1730425060141,0.9561,2513.9,2513.3,3.97878]
[1730425060142,3.97804,2513.8,2513.3,3.97878]
[1730425060318,3.97834,2513.7,2513.2,3.97897]
[1730425060505,3.97867,2513.4,2512.9,3.97933]
[1730425060696,3.97902,2513.2,2512.6,3.97985]
[1730425061007,0.9891,2513.3,2512.2,3.98047]
[1730425061205,3.97964,2512.8,2512.2,3.98047]
[1730425061403,3.97964,2512.8,2512.2,3.98046]
[1730425061629,3.9794,2513.0,2512.3,3.98037]
[1730425061796,3.97947,2512.9,2512.3,3.98037]
[1730425062429,0.9891,2513.3,2512.9,3.97934]
[1730425062681,4.471534,2513.8,2512.9,3.97934]
[1730425062682,3.97845,2513.6,2512.9,3.97934]
[1730425062819,3.97845,2513.6,2513.1,3.97914]
[1730425063007,5.460594,2513.8,2513.2,3.9789]
[1730425063207,1.482514,2513.8,2513.3,3.97873]
[1730425063523,5.460634,2513.8,2513.2,3.97899]
[1730425063896,4.96722,2513.8,2513.3,0.07956944]
[1730425064237,3.97822,2513.7,2513.3,0.07956819]
[1730425064434,3.97822,2513.7,2513.1,3.97906]
[1730425064796,3.97842,2513.6,2513.1,3.97906]
[1730425065018,3.97842,2513.6,2512.8,1.0104]
[1730425065019,3.97885,2513.3,2512.8,4.99001]
[1730425065225,3.97885,2513.3,2512.7,3.97976]
[1730425065527,3.97867,2513.4,2512.8,4.05909248]
[1730425065836,3.97887,2513.3,2512.8,4.05909248]
[1730425066031,7.95783,2513.3,2512.8,0.07958248]
[1730425066240,3.97887,2513.3,2512.7,3.97977]
[1730425066819,3.97916,2513.1,2512.6,3.97994]
[1730425067027,3.97887,2513.3,2512.6,3.97994]
[1730425067366,3.97887,2513.3,2512.3,0.897123]
[1730425067367,4.376381,2513.5,2512.8,3.97959]
[1730425067672,0.397861,2513.5,2512.9,0.07958259]
[1730425067818,0.397861,2513.5,2512.4,3.98017]
[1730425067819,0.397861,2513.5,2513.0,4.05874563]
[1730425068014,7.96728,2513.8,2513.0,4.05874563]
[1730425068254,4.96728,2513.8,2513.0,4.05874563]
[1730425068466,7.95658,2513.7,2513.0,4.05874563]
[1730425068757,7.95658,2513.7,2513.0,3.97917]
[1730425069124,3.97836,2513.6,2512.8,3.97948]
[1730425069322,4.872929,2513.6,2512.8,3.97948]
[1730425069632,4.872929,2513.6,2512.6,3.97985]
[1730425069633,3.97885,2513.3,2512.6,3.97985]
[1730425069834,3.97923,2513.1,2512.4,7.96032]
[1730425070144,9.756003,2513.1,2512.4,3.98016]
[1730425070352,4.98093,2513.1,2512.4,3.98016]
[1730425070719,1.0017,2513.1,2512.6,3.97992]
[1730425071355,1.0017,2513.1,2512.6,3.97984]
[1730425071560,1.0017,2513.1,2512.7,3.97977]
[1730425071722,1.0017,2513.1,2512.6,3.97984]
[1730425072470,1.0017,2513.1,2512.6,3.97982]
[1730425072633,3.97893,2513.3,2512.6,3.97982]
[1730425072959,3.97891,2513.3,2512.7,3.97973]
[1730425073251,4.874721,2513.3,2512.7,3.97973]
[1730425073463,4.874721,2513.3,2512.6,3.97982]
[1730425073464,3.97891,2513.3,2512.6,3.97982]
[1730425073636,3.97909,2513.2,2512.4,3.98025]
[1730425073838,0.397909,2513.1,2512.7,3.97975]
[1730425074051,3.97886,2513.3,2512.7,3.97975]
[1730425074234,0.9965,2513.7,2512.3,0.55]
[1730425074434,3.97844,2513.6,2512.9,3.9794]
[1730425074648,4.95471,2513.7,2512.9,3.97933]
[1730425075071,4.95471,2513.7,2513.0,3.97916]
[1730425075485,0.9765,2513.7,2513.1,4.05859423]
[1730425075979,8.93298,2513.7,2513.1,4.05859423]
[1730425076283,8.93298,2513.7,2513.1,3.97902]
[1730425076440,8.93299,2513.7,2513.1,3.97902]
[1730425076641,3.97856,2513.5,2512.7,3.97967]
[1730425076855,1.869799,2513.7,2512.6,3.0]
[1730425077073,1.869799,2513.7,2512.7,0.07958679]
[1730425077074,3.979,2513.2,2512.7,0.07958679]
[1730425077451,3.97915,2513.1,2512.7,0.07958679]
[1730425077652,3.97915,2513.1,2512.5,4.91879]
[1730425077856,3.97942,2513.0,2512.3,3.98037]
[1730425078065,3.97965,2512.8,2512.3,3.98041]
[1730425078261,4.96772,2513.0,2512.3,3.98041]
[1730425078462,12.03895067,2515.9,2512.6,3.97991]
[1730425078463,3.97906,2513.2,2512.6,3.97991]
[1730425078686,4.96701,2513.4,2512.6,7.95972]
[1730425078848,3.97891,2513.3,2512.7,3.97974]
[1730425079182,4.96701,2513.4,2512.7,3.97974]
[1730425079391,0.9883,2513.4,2512.9,3.97946]
[1730425079547,0.9883,2513.4,2512.7,3.97974]
[1730425079548,3.97885,2513.3,2512.7,3.97974]
[1730425080145,4.96712,2513.4,2512.8,4.0591636]
[1730425080456,3.97851,2513.5,2513.0,3.97917]
[1730425080659,0.9653,2513.8,2513.3,3.97869]
[1730425080858,0.9653,2513.8,2513.1,3.97906]
[1730425080859,3.97837,2513.6,2513.1,3.97906]
[1730425081255,0.9653,2513.8,2512.5,0.929]
[1730425081256,3.97878,2513.4,2512.5,0.929]
[1730425081469,3.97878,2513.4,2512.6,0.62958334]
[1730425081669,3.97842,2513.6,2513.0,3.97921]
[1730425081846,3.97842,2513.6,2512.9,3.97946]
[1730425082061,3.97869,2513.4,2512.9,3.97946]
[1730425082260,3.97842,2513.6,2513.0,4.05884735]
[1730425082261,3.97854,2513.5,2513.0,4.05884735]
[1730425082457,3.97842,2513.6,2513.0,4.05884735]
[1730425082684,3.97853,2513.5,2513.0,4.05884735]
[1730425082982,4.94343,2513.8,2513.3,3.97881]
[1730425083188,3.97838,2513.6,2513.1,3.97914]
[1730425083578,4.94343,2513.8,2513.2,3.97895]
[1730425083750,4.94343,2513.8,2513.3,0.07956853]
[1730425083953,3.97833,2513.7,2513.1,3.97914]
[1730425084150,3.97833,2513.7,2513.1,7.9582]
[1730425084377,3.97838,2513.6,2513.1,3.97906]
[1730425085260,3.97838,2513.6,2513.1,7.95812]
[1730425085466,3.97838,2513.6,2513.1,3.97906]
[1730425085667,0.494368,2513.6,2512.5,4.90901]
[1730425085887,3.97867,2513.4,2512.4,0.29708136]
[1730425086206,7.95968,2512.7,2512.2,0.929]
[1730425086357,3.97914,2513.1,2511.9,0.929]
[1730425086358,3.9803,2512.4,2511.9,0.929]
[1730425086691,3.9803,2512.4,2511.9,4.90993]
[1730425086855,3.97972,2512.8,2512.3,3.98036]
[1730425087193,3.97939,2513.0,2512.3,3.98036]
[1730425087194,3.97948,2512.9,2512.3,7.96072]
[1730425087491,3.97939,2513.0,2512.4,3.98024]
[1730425087790,3.97973,2512.8,2512.2,3.98048]
[1730425087992,0.892377,2513.0,2512.0,3.98089]
[1730425088288,3.98004,2512.6,2512.0,7.96156]
[1730425088455,3.97971,2512.8,2512.2,3.98057]
[1730425088651,3.97971,2512.8,2512.2,3.98043]
[1730425088867,3.9794,2513.0,2512.3,0.07960189]
[1730425089291,4.94438,2513.2,2512.3,0.07960189]
[1730425089489,3.97919,2513.1,2512.5,3.98009]
[1730425089850,3.97931,2513.0,2512.3,7.96067]
[1730425090061,3.97931,2513.0,2512.4,3.98025]
[1730425090255,7.95871,2513.0,2512.4,3.98025]
[1730425090455,3.97967,2512.8,2512.0,3.98073]
[1730425090656,3.97993,2512.7,2512.1,3.98064]
[1730425090956,3.97967,2512.8,2512.0,3.98073]
[1730425090957,3.98002,2512.6,2512.0,7.96153]
[1730425091356,3.98002,2512.6,2512.1,3.98069]
[1730425091552,3.98013,2512.5,2512.0,3.98073]
[1730425091795,3.98013,2512.5,2511.9,0.929]
[1730425091796,4.94543,2512.5,2511.8,3.98109]
[1730425092496,4.94541,2512.5,2512.0,3.98087]
[1730425092993,7.95946,2512.8,2512.2,3.98048]
[1730425093199,3.97979,2512.7,2512.2,3.98048]
[1730425093360,3.97972,2512.8,2512.2,3.98048]
[1730425093754,7.95948,2512.8,2512.2,3.98048]
[1730425093951,0.9336,2512.9,2512.4,3.98014]
[1730425094158,4.91307,2512.9,2512.3,3.98041]
[1730425094467,4.91307,2512.9,2512.3,7.96074]
[1730425094669,4.91307,2512.9,2512.4,3.98025]
[1730425095594,4.91307,2512.9,2512.3,3.98033]
[1730425095755,0.9336,2512.9,2512.4,3.9801]
[1730425095955,3.97933,2513.0,2512.5,3.98008]
[1730425097061,3.97927,2513.1,2512.3,3.9803]
[1730425097260,3.97949,2512.9,2512.3,3.9803]
[1730425097460,3.97949,2512.9,2512.4,3.98023]
[1730425098375,0.9311,2513.2,2513.0,3.97928]
[1730425098568,3.97883,2513.3,2512.8,3.97958]
[1730425099071,3.97877,2513.4,2512.8,3.97958]
[1730425099308,3.97877,2513.4,2512.9,3.97946]
[1730425099490,4.95093,2513.6,2513.0,3.97927]
[1730425099804,0.9725,2513.6,2513.1,0.07958088]
[1730425100008,0.9725,2513.6,2513.2,3.97888]
[1730425100307,3.97812,2513.8,2513.2,3.97888]
[1730425100609,0.943,2513.9,2513.6,3.97825]
[1730425100768,0.943,2514.4,2513.7,4.05770208]
[1730425100965,2.46617778,2514.9,2513.7,4.05770208]
[1730425100966,0.943,2514.8,2514.3,3.97713]
[1730425101865,0.943,2514.8,2514.4,0.07953499]
[1730425102206,0.943,2514.8,2514.1,7.95489]
[1730425102373,0.943,2514.8,2514.1,3.97744]
[1730425102709,3.97639,2514.9,2514.2,0.07953322]